bitfinex/quotes_SOLUSD_20230120
["timestamp","ask_amount","ask_price","bid_price","bid_amount"]
[1674253854907,2.51689,25.1,25.051,116.0727]
[1674253855132,118.4,25.098,25.051,116.0727]
[1674253855335,118.4,25.096,25.051,116.0727]
[1674253855549,168.76689,25.095,25.051,116.0727]
[1674253855770,118.4,25.093,25.051,116.0727]
[1674253855962,22.51689,25.094,25.051,116.0727]
[1674253855963,49.9,25.092,25.051,116.0727]
[1674253856172,20.0,25.091,25.052,20.0]
[1674253856798,20.0,25.091,25.053,0.96]
[1674253857237,20.0,25.092,25.053,0.96]
[1674253857429,20.0,25.092,25.053,17.96]
[1674253857638,20.0,25.092,25.054,20.0]
[1674253857848,20.0,25.096,25.055,17.96]
[1674253858062,66.75149862,25.103,25.056,20.0]
[1674253858292,2.51689,25.102,25.057,17.96]
[1674253858484,29.89,25.101,25.058,20.0]
[1674253858695,29.89,25.101,25.059,17.96]
[1674253859324,29.89,25.101,25.06,20.0]
[1674253859535,29.89,25.101,25.061,17.96]
[1674253859865,29.89,25.101,25.062,20.0]
[1674253860606,29.89,25.101,25.052,20.0]
[1674253860996,20.0,25.1,25.052,20.0]
[1674253861338,29.88,25.103,25.053,2.5499]
[1674253861556,29.88,25.109,25.054,0.96]
[1674253861734,29.87,25.115,25.055,120.94969]
[1674253862073,2.51689,25.114,25.056,37.96]
[1674253862283,29.87,25.113,25.056,17.96]
[1674253862468,29.87,25.113,25.057,22.54949]
[1674253862811,29.87,25.113,25.058,3.50939]
[1674253863128,29.87,25.113,25.059,2.54929]
[1674253863458,36.39838845,25.112,25.057,20.0]
[1674253863642,32.38689,25.111,25.024,41.81]
[1674253863834,2.51689,25.11,25.044,43.25704976]
[1674253864047,29.88,25.109,25.045,2.55071]
[1674253864269,2.51689,25.108,25.045,2.55071]
[1674253864592,30.84,25.107,25.045,2.55071]
[1674253864901,37.0,25.106,25.046,118.4]
[1674253865130,151.75689,25.105,25.035,43.25704976]
[1674253865434,151.75689,25.105,25.04,14.68215881]
[1674253865435,62.84082463,25.104,25.04,14.68215881]
[1674253865650,53.35689,25.103,25.041,2.55112]
[1674253865835,2.51689,25.102,25.041,2.55112]
[1674253866046,149.25,25.101,25.041,17.23327881]
[1674253866274,22.51689,25.1,25.041,2.55112]
[1674253866481,33.36689,25.099,25.041,2.55112]
[1674253866671,22.51689,25.098,25.041,2.55112]
[1674253866888,50.36689,25.097,25.041,2.55112]
[1674253867123,2.51689,25.096,25.041,2.55112]
[1674253867307,29.89,25.095,25.041,2.55112]
[1674253867514,20.0,25.094,25.041,2.55112]
[1674253867845,29.89,25.093,25.041,2.55112]
[1674253868053,20.96,25.092,25.041,2.55112]
[1674253868266,29.9,25.091,25.041,2.55112]
[1674253868679,43.75576951,25.09,25.041,2.55112]
[1674253868893,29.9,25.089,25.034,118.4]
[1674253869089,20.0,25.088,25.034,118.4]
[1674253869305,29.9,25.087,25.034,118.4]
[1674253869517,37.96,25.086,25.034,120.95183]
[1674253869732,29.9,25.085,25.034,2.55183]
[1674253869937,37.0,25.084,25.034,2.55183]
[1674253870147,30.87,25.083,25.034,2.55183]
[1674253870370,37.0,25.082,25.034,2.55183]
[1674253870580,29.91,25.081,25.034,2.55183]
[1674253870781,20.0,25.08,25.029,14.68215881]
[1674253870978,29.91,25.079,25.03,2.55224]
[1674253871196,20.0,25.078,25.03,2.55224]
[1674253871410,29.91,25.077,25.03,2.55224]
[1674253871613,20.0,25.076,25.03,2.55224]
[1674253871830,29.92,25.075,25.03,2.55224]
[1674253872045,20.0,25.074,25.03,17.23439881]
[1674253872265,20.0,25.074,25.031,20.0]
[1674253872595,43.75576951,25.074,25.032,19.55204]
[1674253872805,43.75576951,25.074,25.033,20.0]
[1674253873016,43.75576951,25.074,25.033,25.13803778]
[1674253873205,29.92,25.073,25.033,25.13803778]
[1674253873414,29.92,25.073,25.027,114.6223]
[1674253873415,17.0,25.072,25.027,114.6223]
[1674253873647,29.92,25.071,25.027,114.6223]
[1674253873850,29.92,25.071,25.028,32.54381112]
[1674253874062,29.91,25.079,25.028,2.55244]
[1674253874271,23.75576951,25.071,25.029,15.41380872]
[1674253874468,29.92,25.07,25.03,2.55224]
[1674253874686,47.51153902,25.078,25.029,15.41380872]
[1674253874892,23.75576951,25.069,25.027,114.6223]
[1674253875109,46.92,25.068,25.028,20.0]
[1674253875531,23.75576951,25.067,25.028,20.0]
[1674253875731,49.93,25.066,25.028,20.0]
[1674253876054,29.93,25.066,25.029,15.41380872]
[1674253876249,29.91,25.079,25.03,20.0]
[1674253876461,29.9,25.088,25.031,120.95214]
[1674253876670,29.88,25.103,25.033,118.4]
[1674253876895,23.75576951,25.094,25.034,3.82183]
[1674253877111,29.88,25.103,25.035,121.91173]
[1674253877300,29.88,25.103,25.037,118.4]
[1674253877301,23.75576951,25.102,25.037,118.4]
[1674253877507,23.75576951,25.102,25.036,40.82163]
[1674253877508,29.89,25.101,25.039,118.4]
[1674253877726,29.89,25.101,25.041,118.4]
[1674253878046,23.75576951,25.1,25.043,118.4]
[1674253878260,32.40689,25.099,25.044,136.6565]
[1674253878467,120.91689,25.098,25.044,135.3865]
[1674253878675,52.40689,25.097,25.045,30.82761744]
[1674253878889,76.16265951,25.097,25.046,20.0]
[1674253879101,40.75576951,25.096,25.046,20.0]
[1674253879300,49.89,25.095,25.047,15.41380872]
[1674253879509,17.0,25.094,25.047,15.41380872]
[1674253879752,49.89,25.093,25.048,20.0]
[1674253879943,17.96,25.092,25.048,20.0]
[1674253880147,49.9,25.091,25.048,20.0]
[1674253880360,17.0,25.09,25.049,15.41380872]
[1674253880576,49.9,25.089,25.05,20.0]
[1674253880779,17.0,25.088,25.05,20.0]
[1674253880984,49.9,25.087,25.051,16.37380872]
[1674253881199,73.65576951,25.087,25.052,20.0]
[1674253881514,73.65576951,25.087,25.05,20.0]
[1674253881515,40.75576951,25.086,25.05,20.0]
[1674253881731,49.9,25.085,25.05,20.0]
[1674253881927,17.0,25.084,25.045,20.0]
[1674253882136,49.91,25.083,25.045,20.0]
[1674253882347,17.0,25.082,25.046,15.41380872]
[1674253882558,20.0,25.081,25.047,20.0]
[1674253882778,17.0,25.08,25.045,20.0]
[1674253882991,40.75576951,25.08,25.045,20.0]
[1674253883194,23.75576951,25.079,25.045,20.0]
[1674253883412,53.66576951,25.079,25.045,20.0]
[1674253883738,40.75576951,25.078,25.045,20.0]
[1674253883926,23.75576951,25.078,25.045,20.0]
[1674253884135,23.75576951,25.077,25.045,35.41380872]
[1674253884771,17.0,25.076,25.045,20.0]
[1674253885083,29.91,25.08,25.046,15.41380872]
[1674253885289,20.0,25.081,25.047,20.0]
[1674253885624,20.0,25.082,25.047,20.0]
[1674253885943,20.0,25.09,25.047,153.81380872]
[1674253886157,23.75576951,25.087,25.048,3.51041]
[1674253886367,23.75576951,25.087,25.048,2.55041]
[1674253886581,29.9,25.086,25.045,20.0]
[1674253886886,23.75576951,25.085,25.045,20.0]
[1674253887103,47.87,25.084,25.045,20.0]
[1674253887287,20.0,25.083,25.044,115.3865]
[1674253887617,50.38689,25.082,25.044,115.3865]
[1674253887834,22.51689,25.081,25.044,115.3865]
[1674253888037,47.87,25.08,25.044,115.3865]
[1674253888249,138.4,25.079,25.021,119.671]
[1674253888447,151.78689,25.078,25.022,115.1513]
[1674253888657,22.51689,25.077,25.023,1.041]
[1674253888869,22.51689,25.077,25.022,115.1513]
[1674253888870,32.42689,25.076,25.022,115.1513]
[1674253889089,40.47689,25.075,25.022,115.1513]
[1674253889300,118.4,25.073,25.022,115.1513]
[1674253889493,118.4,25.071,25.022,115.1513]
[1674253889703,49.43689,25.072,25.023,15.41380872]
[1674253889704,52.43689,25.07,25.023,15.41380872]
[1674253889929,87.8492392,25.07,25.023,15.41380872]
[1674253890148,41.71576951,25.069,25.023,15.41380872]
[1674253890343,49.92,25.068,25.024,20.0]
[1674253890556,20.47689,25.067,25.024,20.0]
[1674253890768,52.44689,25.066,25.024,20.0]
[1674253891094,19.51689,25.065,25.025,15.41380872]
[1674253891300,49.93,25.064,25.026,20.0]
[1674253891491,17.0,25.063,25.026,20.0]
[1674253891698,20.0,25.062,25.027,15.41380872]
[1674253891924,17.0,25.061,25.027,15.41380872]
[1674253892138,20.0,25.06,25.028,20.0]
[1674253892538,20.0,25.06,25.028,35.41380872]
[1674253892754,20.0,25.064,25.029,15.41380872]
[1674253892978,20.0,25.067,25.03,20.0]
[1674253893297,43.75576951,25.067,25.031,15.41380872]
[1674253893504,29.93,25.066,25.031,15.41380872]
[1674253893721,20.0,25.065,25.032,20.0]
[1674253894040,29.93,25.067,25.033,15.41380872]
[1674253894226,113.1782,25.068,25.033,15.41380872]
[1674253894434,23.75576951,25.065,25.032,20.0]
[1674253894873,29.93,25.064,25.033,15.41380872]
[1674253895066,29.93,25.064,25.023,20.0]
[1674253895273,43.75576951,25.063,25.024,15.41380872]
[1674253895511,17.96,25.062,25.024,15.41380872]
[1674253895714,20.0,25.061,25.024,15.41380872]
[1674253895929,43.75576951,25.061,25.024,15.41380872]
[1674253896240,40.75576951,25.06,25.024,15.41380872]
[1674253896429,23.75576951,25.06,25.024,15.41380872]
[1674253896644,23.75576951,25.059,25.022,115.1513]
[1674253897285,23.75576951,25.059,25.023,35.41380872]
[1674253897500,23.75576951,25.059,25.023,15.41380872]
[1674253897712,20.0,25.058,25.024,15.41380872]
[1674253898029,17.0,25.057,25.022,115.1513]
[1674253898247,20.0,25.056,25.022,115.1513]
[1674253898430,17.0,25.055,25.022,115.1513]
[1674253898644,20.0,25.054,25.02,15.38079578]
[1674253898855,138.3911,25.056,25.02,15.38079578]
[1674253899069,138.3911,25.056,25.023,15.38079578]
[1674253899284,138.3911,25.056,25.014,109.0339]
[1674253899493,138.3911,25.056,25.015,35.38079578]
[1674253899800,138.3911,25.056,25.015,20.0]
[1674253900012,23.75576951,25.055,25.015,20.0]
[1674253900216,23.75576951,25.055,25.015,36.73479578]
[1674253900426,118.3911,25.056,25.015,35.38079578]
[1674253900651,142.14686951,25.056,25.016,15.38079578]
[1674253900865,23.75576951,25.055,25.016,15.38079578]
[1674253901060,23.75576951,25.055,25.014,109.0339]
[1674253901061,53.69576951,25.055,25.014,109.0339]
[1674253901271,23.75576951,25.055,25.014,109.0339]
[1674253901499,33.41689,25.054,25.005,1.355]
[1674253901817,33.41689,25.054,24.972,18.25738407]
[1674253901818,144.67265951,25.053,24.985,115.7809]
[1674253902025,50.41689,25.052,25.004,16.06826751]
[1674253902338,22.51689,25.051,24.985,115.7809]
[1674253902556,50.42689,25.05,24.985,115.7809]
[1674253902750,22.51689,25.049,24.985,115.7809]
[1674253902949,50.42689,25.048,24.985,115.7809]
[1674253903165,22.51689,25.047,24.985,115.7809]
[1674253903374,33.42689,25.046,24.985,115.7809]
[1674253903598,39.51689,25.045,24.985,115.7809]
[1674253903816,33.42689,25.044,25.012,42.768053]
[1674253904124,213.40527498,25.043,25.012,42.768053]
[1674253904343,118.4,25.041,25.012,42.768053]
[1674253904548,118.4,25.039,25.012,5.3e-05]
[1674253904758,118.4,25.037,25.012,5.3e-05]
[1674253904968,118.4,25.035,25.012,5.3e-05]
[1674253905180,170.88689,25.034,25.012,5.3e-05]
[1674253905496,53.6801568,25.033,25.012,5.3e-05]
[1674253905807,103.6501568,25.032,25.012,5.3e-05]
[1674253906055,107.40592631,25.032,25.012,5.3e-05]
[1674253906211,23.75576951,25.031,25.012,5.3e-05]
[1674253906421,74.71812565,25.031,25.012,5.3e-05]
[1674253906855,23.75576951,25.03,25.012,5.3e-05]
[1674253907169,79.24415449,25.03,25.012,5.3e-05]
[1674253907386,38.97886417,25.029,25.012,5.3e-05]
[1674253907570,23.75576951,25.037,25.012,5.3e-05]
[1674253907785,32.47689,25.036,25.012,5.3e-05]
[1674253907997,2.51689,25.036,25.012,5.3e-05]
[1674253908306,20.0,25.043,25.012,5.3e-05]
[1674253908518,29.95,25.046,25.012,5.3e-05]
[1674253908519,29.94,25.052,25.012,5.3e-05]
[1674253908746,23.75576951,25.05,25.012,5.3e-05]
[1674253908953,2.51689,25.049,25.012,5.3e-05]
[1674253909280,23.75576951,25.048,25.012,5.3e-05]
[1674253909466,32.46689,25.047,25.012,5.3e-05]
[1674253909671,2.51689,25.046,25.012,5.3e-05]
[1674253909886,29.95,25.045,25.012,5.3e-05]
[1674253910215,22.51689,25.044,25.012,5.3e-05]
[1674253910413,50.42689,25.043,25.012,5.3e-05]
[1674253910623,22.51689,25.042,25.012,5.3e-05]
[1674253910846,19.51689,25.041,25.012,5.3e-05]
[1674253911251,20.0,25.04,25.012,5.3e-05]
[1674253911672,48.46635614,25.041,25.012,5.3e-05]
[1674253912008,108.2615,25.044,25.012,5.3e-05]
[1674253912405,23.75576951,25.047,25.012,5.3e-05]
[1674253912612,119.1885,25.066,25.012,5.3e-05]
[1674253912846,23.75576951,25.06,25.012,5.3e-05]
[1674253913030,23.75576951,25.06,25.012,0.960053]
[1674253913031,29.94,25.059,25.012,0.960053]
[1674253913246,23.75576951,25.06,25.012,0.960053]
[1674253913693,29.93,25.063,25.013,1.68]
[1674253913877,29.93,25.063,25.014,0.96]
[1674253914301,37.33982417,25.064,25.015,2.55377]
[1674253914537,29.93,25.067,25.016,2.64]
[1674253914837,29.93,25.067,25.017,120.95357]
[1674253915031,29.93,25.067,25.018,143.12446]
[1674253915250,113.1782,25.068,25.019,22.55336]
[1674253915454,113.1782,25.068,25.02,123.12426]
[1674253915662,113.1782,25.068,25.021,157.95316]
[1674253915884,29.91,25.077,25.022,4.72406]
[1674253916088,23.75576951,25.078,25.023,19.55295]
[1674253916306,29.91,25.077,25.024,22.55285]
[1674253916499,29.91,25.077,25.025,21.72375]
[1674253916713,29.91,25.079,25.026,22.55265]
[1674253916937,29.91,25.079,25.027,21.72355]
[1674253917256,29.91,25.079,25.028,22.55244]
[1674253917448,29.91,25.079,25.029,21.72234]
[1674253917655,29.9,25.086,25.03,140.95224]
[1674253917892,29.9,25.091,25.031,139.95714]
[1674253918208,29.9,25.091,25.032,22.55204]
[1674253918423,29.9,25.091,25.033,21.55693]
[1674253918610,29.9,25.091,25.034,22.55183]
[1674253918824,29.9,25.091,25.035,21.55673]
[1674253919031,29.9,25.091,25.036,132.97723]
[1674253919245,111.0567,25.092,25.038,118.4]
[1674253919466,111.0567,25.092,25.039,23.59632]
[1674253919672,111.0567,25.092,25.04,2.55122]
[1674253919996,29.89,25.099,25.041,1.045]
[1674253920207,29.88,25.103,25.042,120.95102]
[1674253920414,29.88,25.103,25.044,118.4]
[1674253920626,29.88,25.103,25.046,118.4]
[1674253920840,29.88,25.103,25.048,118.4]
[1674253921150,29.88,25.103,25.049,158.9103]
[1674253921368,73.148,25.103,25.05,2.5502]
[1674253921562,43.268,25.103,25.05,3.5102]
[1674253921767,43.268,25.103,25.051,118.4]
[1674253922092,43.268,25.103,25.052,158.91]
[1674253922282,43.268,25.103,25.053,2.5499]
[1674253922499,43.268,25.103,25.054,0.96]
[1674253922716,43.268,25.103,25.055,120.94969]
[1674253922927,43.268,25.103,25.056,23.50959]
[1674253923138,43.268,25.103,25.057,2.54949]
[1674253923455,23.75576951,25.102,25.057,51.81923043]
[1674253923670,20.0,25.101,25.058,20.0]
[1674253923989,49.89,25.101,25.059,2.54929]
[1674253924389,49.89,25.101,25.059,49.0964071]
[1674253924390,20.0,25.101,25.059,49.0964071]
[1674253924615,20.0,25.102,25.06,84.99657832]
[1674253924823,20.0,25.102,25.06,37.96]
[1674253925221,23.75576951,25.101,25.06,20.0]
[1674253925436,29.89,25.1,25.052,117.6014]
[1674253925679,96.91376951,25.101,25.052,117.6014]
[1674253925982,43.268,25.101,25.053,88.33030001]
[1674253926192,43.268,25.101,25.054,22.5498]
[1674253926417,43.268,25.101,25.054,126.94836752]
[1674253926618,23.75576951,25.1,25.054,108.33030001]
[1674253926809,23.75576951,25.1,25.054,36.06826751]
[1674253927019,23.75576951,25.1,25.055,89.29030001]
[1674253927230,23.75576951,25.1,25.056,20.0]
[1674253927451,45.78489,25.1,25.056,20.0]
[1674253927647,43.268,25.1,25.056,81.43849266]
[1674253927856,43.268,25.1,25.057,16.06826751]
[1674253928066,43.268,25.1,25.058,20.0]
[1674253928294,43.268,25.1,25.058,65.37022515]
[1674253928500,43.268,25.1,25.059,61.43849266]
[1674253928703,43.268,25.1,25.06,37.0]
[1674253928902,43.268,25.1,25.06,98.43849266]
[1674253929119,43.268,25.1,25.061,16.06826751]
[1674253929352,43.268,25.1,25.062,37.0]
[1674253929753,43.268,25.1,25.063,16.06826751]
[1674253929964,43.268,25.1,25.064,17.0]
[1674253930174,43.268,25.1,25.065,20.0]
[1674253930379,43.268,25.1,25.066,17.96]
[1674253930589,43.268,25.1,25.066,77.88182599]
[1674253930801,43.268,25.1,25.067,36.06826751]
[1674253931016,43.268,25.1,25.068,136.36]
[1674253931228,29.85,25.127,25.07,118.4]
[1674253931438,29.84,25.137,25.072,118.4]
[1674253931645,29.84,25.137,25.074,118.4]
[1674253931854,29.84,25.137,25.076,118.4]
[1674253932069,29.84,25.137,25.078,118.4]
[1674253932284,29.84,25.137,25.077,23.50746]
[1674253932285,32.35689,25.137,25.079,20.0]
[1674253932484,2.51689,25.136,25.079,84.59315932]
[1674253932696,29.84,25.135,25.08,16.06826751]
[1674253932904,22.51689,25.134,25.069,118.2781]
[1674253933125,2.51689,25.132,25.077,16.06826751]
[1674253933332,6.91642,25.101,25.077,16.06826751]
[1674253933556,20.0,25.1,25.077,16.06826751]
[1674253936159,6.91642,25.101,25.077,44.13199886]
[1674253936491,6.91642,25.101,25.078,16.06826751]
[1674253936814,6.91642,25.101,25.079,20.0]
[1674253937320,6.91642,25.101,25.08,34.02826751]
[1674253937647,6.91642,25.101,25.081,16.06826751]
[1674253937861,6.91642,25.101,25.082,17.96]
[1674253938068,23.75576951,25.1,25.082,17.96]
[1674253938277,6.91642,25.101,25.082,17.96]
[1674253938800,6.91642,25.101,25.083,16.06826751]
[1674253939010,6.91642,25.101,25.084,17.96]
[1674253939942,6.91642,25.101,25.069,118.2781]
[1674253940153,6.91642,25.101,25.079,16.06826751]
[1674253940918,20.0,25.1,25.07,16.06826751]
[1674253941308,6.91642,25.101,25.07,16.06826751]
[1674253941519,6.91642,25.101,25.071,17.0]
[1674253941961,6.91642,25.101,25.072,16.06826751]
[1674253942165,6.91642,25.101,25.073,17.0]
[1674253942582,6.91642,25.101,25.074,16.06826751]
[1674253942794,20.0,25.1,25.075,17.0]
[1674253943204,20.0,25.1,25.076,16.06826751]
[1674253943534,6.91642,25.101,25.076,16.06826751]
[1674253943535,6.91642,25.101,25.077,17.96]
[1674253943745,6.91642,25.101,25.078,20.0]
[1674253943960,6.91642,25.101,25.079,17.96]
[1674253944159,6.91642,25.101,25.08,20.0]
[1674253944369,6.91642,25.101,25.081,17.96]
[1674253944688,6.91642,25.101,25.082,36.06826751]
[1674253944904,6.91642,25.101,25.083,17.96]
[1674253945094,6.91642,25.101,25.084,20.0]
[1674253945301,6.91642,25.101,25.085,17.0]
[1674253945737,20.0,25.1,25.069,118.2781]
[1674253945950,20.0,25.1,25.076,16.06826751]
[1674253946475,20.0,25.1,25.069,118.2781]
[1674253946699,20.0,25.1,25.07,16.06826751]
[1674253948473,20.0,25.1,25.045,118.4]
[1674253948797,20.0,25.1,25.061,32.13653502]
[1674253948798,29.89,25.099,25.061,32.13653502]
[1674253948985,6.91642,25.101,25.062,138.4]
[1674253949523,6.91642,25.101,25.063,16.06826751]
[1674253949734,6.91642,25.101,25.064,20.0]
[1674253950149,20.0,25.1,25.065,16.06826751]
[1674253950571,29.89,25.099,25.065,16.06826751]
[1674253950791,20.0,25.098,25.065,16.06826751]
[1674253951002,29.89,25.097,25.065,16.06826751]
[1674253951194,20.0,25.096,25.065,16.06826751]
[1674253951405,29.89,25.095,25.065,16.06826751]
[1674253951610,20.0,25.094,25.065,16.06826751]
[1674253952270,20.0,25.099,25.065,16.06826751]
[1674253952674,20.0,25.099,25.064,20.0]
[1674253952892,29.89,25.098,25.065,16.06826751]
[1674253953214,39.51689,25.097,25.065,16.06826751]
[1674253953404,29.89,25.096,25.065,16.06826751]
[1674253953627,20.0,25.095,25.065,16.06826751]
[1674253954680,2.51689,25.097,25.048,20.0]
[1674253955013,2.51689,25.097,25.049,34.02826751]
[1674253955014,29.89,25.096,25.049,34.02826751]
[1674253955320,20.0,25.095,25.05,36.06826751]
[1674253955628,20.0,25.095,25.051,17.96]
[1674253955845,20.0,25.095,25.051,16.06826751]
[1674253956049,20.0,25.095,25.052,36.06826751]
[1674253956258,20.0,25.095,25.053,20.0]
[1674253956770,20.0,25.095,25.054,16.06826751]
[1674253956975,20.0,25.095,25.055,139.36]
[1674253957297,20.0,25.095,25.056,16.06826751]
[1674253957503,20.0,25.095,25.057,0.96]
[1674253957717,20.0,25.099,25.057,20.96]
[1674253957941,20.0,25.099,25.058,16.06826751]
[1674253958153,29.89,25.098,25.059,0.96]
[1674253958350,20.0,25.097,25.059,20.96]
[1674253958563,20.0,25.097,25.06,16.06826751]
[1674253958873,29.89,25.096,25.061,20.96]
[1674253959083,20.0,25.095,25.061,20.96]
[1674253959300,20.0,25.097,25.062,16.06826751]
[1674253959520,20.0,25.097,25.063,0.96]
[1674253959732,20.0,25.099,25.063,20.96]
[1674253959929,20.0,25.099,25.064,16.06826751]
[1674253960134,20.0,25.099,25.065,0.96]
[1674253960135,29.89,25.098,25.065,0.96]
[1674253960353,20.0,25.097,25.065,20.96]
[1674253960550,20.0,25.097,25.065,37.02826751]
[1674253960767,29.89,25.096,25.065,37.02826751]
[1674253960988,20.0,25.095,25.065,20.0]
[1674253961190,29.89,25.094,25.06,16.06826751]
[1674253961390,20.0,25.093,25.061,20.0]
[1674253961601,20.0,25.093,25.046,110.0361]
[1674253961602,29.9,25.092,25.046,110.0361]
[1674253961821,20.0,25.091,25.048,15.06826751]
[1674253962044,29.9,25.09,25.048,15.06826751]
[1674253962228,20.0,25.089,25.048,15.06826751]
[1674253962653,20.0,25.091,25.048,15.06826751]
[1674253963074,20.0,25.091,25.049,17.96]
[1674253963506,20.0,25.091,25.05,154.46826751]
[1674253963716,20.0,25.091,25.051,17.96]
[1674253963925,20.0,25.091,25.052,20.0]
[1674253964147,20.0,25.091,25.051,16.00217566]
[1674253964352,20.0,25.091,25.052,20.0]
[1674253964576,20.0,25.091,25.053,16.00217566]
[1674253964763,20.0,25.091,25.054,20.0]
[1674253964968,22.51689,25.091,25.054,20.0]
[1674253965179,22.51689,25.091,25.047,20.0]
[1674253965499,17.0,25.09,25.047,20.0]
[1674253965723,52.41689,25.089,25.047,20.0]
[1674253966033,29.9,25.089,25.048,16.00217566]
[1674253966247,113.3175,25.092,25.049,20.0]
[1674253966643,113.3175,25.092,25.05,16.00217566]
[1674253966858,113.3175,25.092,25.051,0.96]
[1674253967078,115.83439,25.092,25.051,20.96]
[1674253967297,115.83439,25.092,25.051,20.0]
[1674253967697,46.9,25.091,25.047,20.0]
[1674253967908,22.51689,25.09,25.047,20.0]
[1674253968141,22.51689,25.09,25.047,36.00217566]
[1674253968539,22.51689,25.09,25.048,16.00217566]
[1674253968743,2.51689,25.09,25.049,20.96]
[1674253968957,19.51689,25.09,25.049,20.96]
[1674253969178,19.51689,25.09,25.05,16.00217566]
[1674253969406,52.41689,25.089,25.05,16.00217566]
[1674253969610,19.51689,25.088,25.05,16.00217566]
[1674253969825,52.41689,25.087,25.051,20.0]
[1674253970013,19.51689,25.086,25.051,20.0]
[1674253970219,52.41689,25.085,25.051,20.0]
[1674253970434,20.0,25.085,25.051,36.00217566]
[1674253970645,20.0,25.09,25.051,36.00217566]
[1674253970855,29.9,25.089,25.051,36.00217566]
[1674253971087,20.0,25.088,25.052,17.96]
[1674253971274,32.41689,25.087,25.053,20.0]
[1674253971603,39.51689,25.086,25.054,17.0]
[1674253971823,2.51689,25.085,25.055,20.0]
[1674253972129,2.51689,25.085,25.053,20.0]
[1674253972322,20.0,25.087,25.053,20.0]
[1674253972532,20.0,25.087,25.05,47.458677]
[1674253972747,20.0,25.09,25.052,16.00217566]
[1674253973077,32.41689,25.089,25.053,20.0]
[1674253973395,20.0,25.088,25.053,20.0]
[1674253973605,20.0,25.088,25.054,17.0]
[1674253973802,2.51689,25.087,25.055,20.0]
[1674253974129,19.51689,25.087,25.056,17.96]
[1674253974348,23.75576951,25.086,25.056,17.0]
[1674253974656,39.51689,25.085,25.055,20.0]
[1674253974845,2.51689,25.084,25.051,36.00217566]
[1674253975055,29.91,25.083,25.051,16.00217566]
[1674253975260,29.91,25.083,25.05,47.458677]
[1674253975261,41.84689,25.082,25.05,47.458677]
[1674253975490,32.42689,25.081,25.05,47.458677]
[1674253975685,20.0,25.08,25.05,47.458677]
[1674253975899,29.91,25.079,25.05,47.458677]
[1674253976115,20.0,25.078,25.05,47.458677]
[1674253976328,2.33,25.082,25.051,36.00217566]
[1674253976540,29.89,25.099,25.052,17.96]
[1674253976754,29.9,25.091,25.053,20.0]
[1674253977075,23.75576951,25.083,25.054,17.0]
[1674253977279,23.75576951,25.083,25.055,20.0]
[1674253977495,23.75576951,25.083,25.056,17.0]
[1674253977712,20.0,25.082,25.056,17.0]
[1674253978135,23.75576951,25.085,25.056,33.00217566]
[1674253978441,29.89,25.099,25.056,33.00217566]
[1674253978654,29.89,25.099,25.057,20.96]
[1674253978655,137.07326951,25.092,25.057,20.96]
[1674253978845,137.07326951,25.092,25.058,17.0]
[1674253979063,137.07326951,25.092,25.059,20.96]